bitfinex/quotes_SOLUSD_20250908
["timestamp","ask_amount","ask_price","bid_price","bid_amount"]
[1757291561577,10.89871894,206.88,206.82,6.0648101]
[1757291561886,38.66,206.87,206.82,6.0648101]
[1757291562086,4.83325277,206.9,206.84,6.0648101]
[1757291562294,38.66,206.89,206.85,0.69]
[1757291562489,38.66,206.89,206.8,4.83548046]
[1757291562691,38.66,206.89,206.84,6.0648101]
[1757291562897,38.66,206.89,206.84,6.7548101]
[1757291563082,38.66,206.89,206.84,6.0648101]
[1757291563282,43.49352497,206.89,206.84,6.7548101]
[1757291563476,43.49352497,206.89,206.85,0.69]
[1757291563477,38.66,206.89,206.85,0.69]
[1757291564087,38.66,206.89,206.82,26.69]
[1757291564088,49.55840156,206.89,206.82,26.69]
[1757291564397,49.55840156,206.89,206.84,6.0648101]
[1757291564601,49.55840156,206.89,206.83,6.0648101]
[1757291565804,50.26840156,206.89,206.83,6.0648101]
[1757291566486,6.0648101,206.87,206.8,1e-08]
[1757291566686,6.0648101,206.85,206.8,1e-08]
[1757291567099,6.0648101,206.83,206.8,1e-08]
[1757291567293,6.0648101,206.81,206.8,1e-08]
[1757291567492,44.7048101,206.81,206.8,1e-08]
[1757291567697,45.4148101,206.81,206.8,1e-08]
[1757291568093,50.25016622,206.81,206.8,1e-08]
[1757291570313,63.84576023,206.81,206.8,1e-08]
[1757291570987,65.78238421,206.81,206.8,1e-08]
[1757291572793,59.71757411,206.81,206.8,1e-08]
[1757291572991,65.78238421,206.81,206.8,1e-08]
[1757291573307,6.8319801,206.81,206.8,1e-08]
[1757291573486,0.06,206.81,206.8,1e-08]
[1757291573687,43.49535612,206.81,206.8,1e-08]
[1757291574407,38.66,206.81,206.8,1e-08]
[1757291574720,49.56016622,206.81,206.8,1e-08]
[1757291575082,43.49535612,206.81,206.8,1e-08]
[1757291575416,38.66,206.81,206.8,1e-08]
[1757291576014,38.66,206.81,206.8,0.69000001]
[1757291576511,38.66,206.81,206.8,1e-08]
[1757291579009,38.66,206.81,206.8,0.69000001]
[1757291580314,38.66,206.81,206.8,1e-08]
[1757291583207,43.49535612,206.81,206.8,1e-08]
[1757291583615,38.6,206.81,206.8,6.75481011]
[1757291584315,38.6,206.81,206.8,3.11523368]
[1757291584687,38.6,206.81,206.8,7.95082362]
[1757291584911,38.6,206.81,206.8,3.11523368]
[1757291585117,38.6,206.81,206.8,7.95082362]
[1757291585312,38.6,206.81,206.8,3.11523368]
[1757291585899,38.6,206.81,206.8,5.52558995]
[1757291586208,38.6,206.81,206.8,3.11523368]
[1757291586519,38.6,206.81,206.8,6.75366265]
[1757291587190,38.6,206.81,206.8,11.58925259]
[1757291587391,38.6,206.81,206.8,0.69000001]
[1757291587591,38.6,206.81,206.8,1e-08]
[1757291588112,50.19901876,206.81,206.8,1e-08]
[1757291590420,63.79461277,206.81,206.8,1e-08]
[1757291593724,43.43535612,206.81,206.8,1e-08]
[1757291593904,49.49901876,206.81,206.8,1e-08]
[1757291594604,44.66366264,206.81,206.8,1e-08]
[1757291594805,50.19901876,206.81,206.8,1e-08]
[1757291596626,63.79461277,206.81,206.8,1e-08]
[1757291599133,65.73114299,206.81,206.8,1e-08]
[1757291606512,74.33339225,206.81,206.8,1e-08]
[1757291606730,74.33339225,206.81,206.77,0.03]
[1757291606731,13.59559401,206.8,206.77,1e-08]
[1757291606924,16.0234617,206.78,206.77,1e-08]
[1757291607321,13.59559401,206.75,206.67,0.66]
[1757291607525,2.42786769,206.73,206.67,0.66]
[1757291608543,21.560689,206.73,206.67,0.66]
[1757291609240,24.08855669,206.73,206.67,0.66]
[1757291609934,13.59559401,206.69,206.63,0.1]
[1757291610115,16.0234617,206.64,206.63,0.1]
[1757291610315,54.5034617,206.64,206.63,0.1]
[1757291610515,61.28092115,206.64,206.63,0.1]
[1757291614436,2.42786769,206.69,206.63,0.76]
[1757291614646,18.43305531,206.72,206.63,0.76]
[1757291614647,2.42786769,206.67,206.63,0.76]
[1757291614818,38.5,206.66,206.63,3.18786769]
[1757291615018,38.5,206.65,206.64,0.66]
[1757291615824,38.5,206.65,206.64,3.08786769]
[1757291616231,38.5,206.65,206.64,3.09786769]
[1757291617325,38.5,206.65,206.64,0.67]
[1757291617531,45.76696761,206.65,206.63,0.1]
[1757291618047,2.42786769,206.64,206.63,0.1]
[1757291618539,38.5,206.64,206.63,3.19786769]
[1757291619835,38.5,206.64,206.63,8.037436]
[1757291620435,38.5,206.64,206.63,9.4050428]
[1757291620746,38.5,206.64,206.63,5.60956831]
[1757291621046,38.5,206.64,206.63,9.4050428]
[1757291625850,38.5,206.64,206.63,5.60956831]
[1757291626147,38.5,206.64,206.63,9.4050428]
[1757291628132,0.06,206.72,206.66,26.0]
[1757291628329,38.38,206.71,206.69,3.79547449]
[1757291628533,38.38,206.71,206.7,3.79547449]
[1757291628852,38.46,206.71,206.7,4.46547449]
[1757291629154,0.06,206.72,206.7,4.46547449]
[1757291629362,0.06,206.72,206.67,106.1]
[1757291629363,38.52,206.72,206.71,9.30316981]
[1757291631841,0.06,206.72,206.71,9.30316981]
[1757291632352,0.06,206.72,206.71,102.99876382]
[1757291633466,0.06,206.75,206.74,26.0]
[1757291633660,0.06,206.75,206.74,29.79547449]
[1757291633849,1e-08,206.75,206.74,44.0610685]
[1757291634041,0.06,206.77,206.75,13.59559401]
[1757291634251,0.06,206.77,206.76,17.3910685]
[1757291634449,0.06,206.77,206.76,18.0610685]
[1757291635779,0.06,206.77,206.76,22.89759394]
[1757291638951,0.06,206.77,206.76,9.30199993]
[1757291639148,0.06,206.77,206.76,8.63199993]
[1757291640441,0.06,206.77,206.76,9.30199993]
[1757291643044,0.06,206.77,206.76,22.89759394]
[1757291644344,1e-08,206.77,206.76,22.89759394]
[1757291644557,1e-08,206.77,206.76,51.88759394]
[1757291644759,0.06,206.8,206.79,26.0]
[1757291644948,0.06,206.8,206.79,29.79547449]
[1757291645152,0.06,206.8,206.79,30.46547449]
[1757291645561,0.06,206.8,206.79,35.30129827]
[1757291645960,0.06,206.8,206.79,34.63129827]
[1757291646267,0.06,206.8,206.79,35.34129827]
[1757291646472,0.06,206.8,206.79,34.63129827]
[1757291648369,0.06,206.8,206.79,114.73129827]
[1757291648870,0.06,206.8,206.79,106.1]
[1757291649065,0.06,206.8,206.79,109.89547449]
[1757291649268,0.75,206.8,206.78,29.79547449]
[1757291649463,0.69,206.79,206.78,3.79547449]
[1757291649860,38.24,206.79,206.74,4.83677773]
[1757291650068,0.69,206.78,206.75,3.79547449]
[1757291650369,0.69,206.77,206.73,3.79547449]
[1757291650675,0.69,206.76,206.73,3.79547449]
[1757291651057,8.63169038,206.78,206.73,3.79547449]
[1757291651058,0.69,206.75,206.74,26.0]
[1757291651462,0.69,206.75,206.72,3.79547449]
[1757291651775,0.69,206.75,206.7,4.83771756]
[1757291651776,0.69,206.74,206.71,3.79547449]
[1757291652149,0.69,206.73,206.71,3.79547449]
[1757291652957,0.69,206.72,206.68,3.79547449]
[1757291653161,38.95,206.71,206.66,3.79547449]
[1757291653467,0.69,206.7,206.66,3.79547449]
[1757291653649,0.69,206.69,206.66,3.79547449]
[1757291653848,0.69,206.68,206.66,3.79547449]
[1757291654048,0.69,206.68,206.65,3.79547449]
[1757291654976,0.69,206.68,206.64,26.0]
[1757291654977,4.48547449,206.73,206.67,3.79547449]
[1757291655158,38.3,206.72,206.68,3.79547449]
[1757291655364,38.99,206.72,206.69,3.79547449]
[1757291655568,3.79547449,206.7,206.63,0.1]
[1757291655764,3.79547449,206.67,206.63,0.1]
[1757291656074,0.69,206.66,206.63,0.1]
[1757291656378,38.3,206.65,206.63,0.1]
[1757291656980,38.3,206.65,206.63,3.89547449]
[1757291658172,0.69,206.66,206.63,0.1]
[1757291658375,38.36,206.65,206.64,3.79547449]
[1757291660781,38.36,206.65,206.63,3.89547449]
[1757291660961,38.36,206.65,206.63,0.1]
[1757291660962,39.05,206.65,206.63,0.1]
[1757291661163,38.36,206.65,206.63,3.89547449]
[1757291664156,38.36,206.65,206.64,3.79547449]
[1757291664157,38.3,206.65,206.64,3.79547449]
[1757291665771,38.3,206.65,206.64,8.63480859]
[1757291665973,0.69,206.69,206.64,8.63480859]
[1757291666170,38.28,206.68,206.66,3.79547449]
[1757291666366,38.28,206.68,206.67,3.79547449]
[1757291666573,38.28,206.68,206.64,5.5493341]
[1757291666769,0.69,206.71,206.67,3.79547449]
[1757291666974,38.26,206.7,206.68,3.79547449]
[1757291667285,38.26,206.69,206.66,26.0]
[1757291667483,38.26,206.69,206.68,3.79547449]
[1757291667862,0.69,206.72,206.68,3.79547449]
[1757291668070,38.26,206.71,206.69,3.79547449]
[1757291668560,0.69,206.76,206.7,4.50547449]
[1757291668766,38.24,206.75,206.73,3.79547449]
[1757291668962,38.24,206.75,206.7,26.71]
[1757291668963,38.24,206.75,206.74,3.79547449]
[1757291670882,38.24,206.75,206.74,8.63246781]
[1757291671393,38.24,206.75,206.74,3.79547449]
[1757291671589,0.69,206.79,206.74,3.79547449]
[1757291671590,0.69,206.79,206.74,8.63242871]
[1757291671804,38.24,206.75,206.74,4.83695422]
[1757291671963,38.24,206.75,206.72,5.54730905]
[1757291672379,38.93,206.75,206.7,26.0]
[1757291672790,38.93,206.75,206.7,26.71]
[1757291672981,38.93,206.75,206.73,3.79547449]
[1757291673192,38.24,206.75,206.73,3.79547449]
[1757291673792,38.24,206.75,206.74,3.79547449]
[1757291674584,38.93,206.75,206.72,26.0]
[1757291674897,0.69,206.74,206.71,3.79547449]
[1757291675075,38.24,206.75,206.71,83.89547449]
[1757291675076,0.66,206.73,206.71,83.89547449]
[1757291675276,38.9,206.75,206.71,83.89547449]
[1757291675579,38.24,206.75,206.73,3.79547449]
[1757291676197,38.9,206.75,206.73,3.79547449]
[1757291676501,38.24,206.75,206.73,3.79547449]
[1757291676698,38.24,206.75,206.74,3.79547449]
[1757291677394,38.16,206.75,206.74,3.79547449]
[1757291679786,38.82,206.75,206.73,0.03]
[1757291680478,0.66,206.74,206.73,0.03]
[1757291681912,22.88806182,206.74,206.73,0.03]
[1757291682279,36.0498363,206.74,206.73,0.03]
[1757291683097,33.62078414,206.74,206.73,0.03]
[1757291683293,36.0498363,206.74,206.73,0.03]
[1757291688492,21.52163949,206.74,206.73,0.03]
[1757291688806,61.6187324,206.74,206.73,0.03]
[1757291689183,42.99699332,206.74,206.73,0.03]
[1757291689387,45.42604548,206.74,206.73,0.03]
[1757291690302,59.68163949,206.74,206.73,0.03]
[1757291690896,57.25258733,206.74,206.73,0.03]
[1757291691210,59.68163949,206.74,206.73,0.03]
[1757291692188,62.20915143,206.74,206.73,0.03]
[1757291692389,64.14643198,206.74,206.73,0.03]
[1757291693402,13.59559401,206.73,206.68,0.03]
[1757291693596,38.18,206.72,206.68,0.03]
[1757291693798,16.02464617,206.69,206.68,0.03]
[1757291694001,59.0428096,206.69,206.68,0.03]
[1757291694204,59.7028096,206.69,206.68,0.03]
[1757291694407,4.83816343,206.69,206.68,0.03]
[1757291694715,43.01816343,206.69,206.68,0.69]
[1757291695214,38.18,206.69,206.68,0.69]
[1757291695402,4.83775356,206.71,206.68,0.69]
[1757291695597,38.18,206.7,206.68,0.69]
[1757291696399,4.8374613,206.72,206.68,0.69]
[1757291696601,38.18,206.71,206.69,0.66]
[1757291697101,38.18,206.71,206.7,0.66]
[1757291697601,38.18,206.71,206.7,0.03]
[1757291698011,38.18,206.71,206.7,0.69]
[1757291698709,43.01769532,206.71,206.7,0.69]
[1757291700800,38.18,206.71,206.7,0.69]
[1757291701018,38.18,206.71,206.7,3.11905216]
[1757291702030,0.06,206.77,206.7,3.11905216]
[1757291702031,2.48905216,206.77,206.7,3.11905216]
[1757291702200,2.48905216,206.77,206.73,2.42905216]
[1757291702201,4.89634482,206.77,206.73,2.42905216]
[1757291702407,38.18,206.76,206.74,0.66]
[1757291703002,38.18,206.76,206.75,0.66]
[1757291704519,38.18,206.76,206.7,0.03]
[1757291704520,46.1055776,206.76,206.7,0.03]
[1757291704708,2.42905216,206.74,206.7,0.03]
[1757291704904,40.58905216,206.73,206.7,0.03]
[1757291705105,40.58905216,206.72,206.7,0.03]
[1757291705323,41.28905216,206.72,206.7,0.03]
[1757291705711,40.58905216,206.72,206.7,0.03]
[1757291706019,4.83652544,206.76,206.71,0.71]
[1757291706223,2.42905216,206.72,206.7,0.03]
[1757291706410,59.08234149,206.71,206.7,0.03]
[1757291706614,69.49855013,206.71,206.7,0.03]
[1757291706925,59.78234149,206.71,206.7,0.03]
[1757291708829,7.26674748,206.71,206.7,0.03]
[1757291709028,45.52674748,206.71,206.7,0.03]
[1757291709505,43.09769532,206.71,206.7,0.74]
[1757291710017,4.83652544,206.76,206.7,3.16905216]
[1757291710227,38.28,206.75,206.71,0.71]
[1757291710417,38.28,206.75,206.72,0.71]
[1757291710623,38.28,206.75,206.73,0.71]
[1757291710826,38.28,206.75,206.7,2.45905216]
[1757291711031,38.28,206.75,206.71,0.71]
[1757291711224,38.28,206.75,206.72,0.71]
[1757291711427,38.28,206.75,206.73,0.71]
[1757291711740,38.28,206.75,206.74,0.71]
[1757291712516,38.28,206.75,206.73,0.71]
[1757291713330,38.28,206.75,206.74,0.71]
[1757291717449,38.28,206.75,206.71,0.71]
[1757291717629,38.28,206.75,206.72,0.71]
[1757291717833,38.28,206.75,206.73,0.71]
[1757291718656,43.11683847,206.75,206.71,6.06819492]
[1757291718860,43.11683847,206.75,206.7,0.03]
[1757291718861,6.76819492,206.74,206.7,0.03]
[1757291719041,6.06819492,206.72,206.7,0.03]
[1757291719245,38.22,206.71,206.7,0.03]
[1757291719454,49.12589024,206.71,206.7,0.03]
[1757291719649,38.22,206.71,206.7,0.03]
[1757291719834,43.05769532,206.71,206.7,0.03]
[1757291720029,38.22,206.71,206.7,0.03]
[1757291720543,43.05769532,206.71,206.7,0.03]
[1757291721053,38.22,206.71,206.7,0.03]
[1757291721253,38.22,206.71,206.7,0.74]
[1757291723654,38.22,206.71,206.7,0.03]
[1757291723958,43.05769532,206.71,206.7,0.03]
[1757291724753,49.82589024,206.71,206.7,0.03]
[1757291724950,63.42148425,206.71,206.7,0.03]
[1757291725460,65.35895246,206.71,206.7,0.03]
[1757291727546,51.76335845,206.71,206.7,0.03]
[1757291727862,65.35895246,206.71,206.7,0.03]
[1757291728167,63.42148425,206.71,206.7,0.03]
[1757291728743,65.35895247,206.71,206.7,0.03]
[1757291729649,67.88685259,206.71,206.7,0.03]
[1757291731269,39.59559401,206.69,206.68,1e-08]
[1757291731465,83.84378893,206.69,206.68,1e-08]
[1757291731650,84.54378893,206.69,206.68,1e-08]
[1757291732447,86.48172648,206.69,206.68,1e-08]
[1757291733462,91.31988991,206.69,206.68,1e-08]
[1757291734366,87.68259824,206.69,206.68,1e-08]
[1757291737168,87.68259824,206.69,206.67,0.03]
[1757291737169,13.59559401,206.68,206.67,0.03]
[1757291737469,2.43090325,206.64,206.63,0.1]
[1757291737668,40.61090325,206.64,206.63,0.1]
[1757291738455,45.45023735,206.64,206.63,0.1]
[1757291742474,8.63766296,206.64,206.63,0.1]
[1757291742668,46.81766296,206.64,206.63,0.1]
[1757291742867,4.8393341,206.64,206.63,0.76]
[1757291743071,46.81766296,206.64,206.63,0.76]
[1757291743258,8.63766296,206.64,206.63,0.76]
[1757291743454,46.81766296,206.64,206.63,0.76]
[1757291743672,43.0193341,206.64,206.63,0.76]
[1757291744178,38.18,206.64,206.63,0.76]
[1757291744355,43.0193341,206.64,206.63,0.76]
[1757291745280,38.18,206.64,206.63,0.76]
[1757291745669,4.83892438,206.66,206.63,0.76]
[1757291745864,38.18,206.65,206.63,0.76]
[1757291746065,4.83868742,206.67,206.63,0.76]
[1757291746285,38.18,206.66,206.65,3.79832886]
[1757291746577,38.18,206.66,206.65,4.45832886]
[1757291748576,38.18,206.66,206.65,0.66]
[1757291749771,43.01886576,206.66,206.65,0.66]
[1757291749982,46.81719462,206.66,206.63,0.1]
[1757291750162,3.79832886,206.65,206.63,0.1]
[1757291750362,38.18,206.64,206.63,0.1]
[1757291751057,41.97832886,206.64,206.63,0.1]
[1757291751472,38.18,206.64,206.63,0.76]
[1757291756273,3.79832886,206.68,206.63,0.76]
[1757291756476,3.79832886,206.69,206.63,4.55832886]
[1757291756674,38.18,206.68,206.64,0.66]
[1757291756878,38.18,206.68,206.65,0.66]
[1757291757079,38.18,206.68,206.63,0.1]
[1757291757080,3.79832886,206.67,206.63,0.1]
[1757291757273,38.18,206.66,206.63,0.76]
[1757291758173,38.18,206.66,206.64,0.66]
[1757291758482,43.01887264,206.66,206.64,0.66]
[1757291758870,43.01887264,206.66,206.65,0.66]
[1757291759275,43.01887264,206.66,206.63,0.1]
[1757291759491,43.01887264,206.66,206.64,0.66]
[1757291759685,38.18,206.66,206.64,0.66]
[1757291759892,38.18,206.66,206.65,0.66]
[1757291760389,38.18,206.66,206.65,4.45832886]
[1757291760770,4.83820704,206.69,206.65,4.45832886]
[1757291760990,38.18,206.68,206.66,0.66]
[1757291762280,38.18,206.68,206.65,3.79832886]
[1757291762281,38.18,206.68,206.67,0.66]
[1757291762692,38.18,206.68,206.65,3.79832886]
[1757291762990,38.18,206.68,206.66,0.66]
[1757291763990,38.18,206.68,206.67,0.66]
[1757291764172,13.26982867,206.72,206.67,4.45832886]
[1757291764372,38.16,206.71,206.68,4.45832886]
[1757291764780,38.16,206.71,206.68,0.66]
[1757291766908,42.9977172,206.71,206.67,3.79832886]
[1757291767081,42.9977172,206.71,206.67,0.71]
[1757291767392,43.6977172,206.71,206.66,3.79832886]
[1757291767595,43.6977172,206.71,206.65,0.71]
[1757291767596,4.49832886,206.7,206.65,0.03]
[1757291767788,38.16,206.69,206.65,0.03]
[1757291767987,0.06,206.68,206.65,0.03]
[1757291768194,38.16,206.67,206.65,0.03]
[1757291768596,38.16,206.67,206.65,0.74]
[1757291769974,0.7,206.66,206.65,0.03]
[1757291770188,4.49832886,206.66,206.65,0.03]
[1757291771480,9.33719462,206.66,206.65,0.03]
[1757291773303,22.93278863,206.66,206.65,0.03]
[1757291775603,42.99886576,206.66,206.65,0.03]
[1757291776488,38.16,206.66,206.65,0.03]
[1757291776690,42.99886576,206.66,206.65,0.03]
[1757291777278,61.09278863,206.66,206.65,0.03]
[1757291777480,42.99886576,206.66,206.65,0.03]
[1757291777681,38.16,206.66,206.65,0.03]
[1757291778802,42.99886576,206.66,206.65,0.03]
[1757291783009,57.29445977,206.66,206.65,0.03]
[1757291784291,42.99886576,206.66,206.65,0.03]
[1757291786092,43.05886576,206.66,206.65,0.03]
[1757291789791,0.06,206.66,206.65,4.53832886]
[1757291789990,38.2,206.66,206.65,4.53832886]
[1757291792591,43.03886576,206.66,206.65,4.53832886]
[1757291793389,43.03886576,206.66,206.65,3.82832886]
[1757291793595,38.2,206.66,206.65,4.53832886]
[1757291794790,38.2,206.66,206.65,0.74]
[1757291794996,38.2,206.66,206.65,3.82832886]
[1757291795199,38.2,206.66,206.65,0.03]
[1757291795502,38.2,206.66,206.65,3.82832886]
[1757291796003,38.2,206.66,206.65,4.53832886]
[1757291796896,38.2,206.66,206.65,0.03]
[1757291796897,46.83719462,206.66,206.65,0.03]
[1757291797101,87.09278863,206.66,206.65,0.03]
[1757291797300,7.49689721,206.66,206.65,0.03]
[1757291797505,45.05689721,206.66,206.65,0.03]
[1757291797813,43.11886576,206.66,206.65,0.03]
[1757291798015,43.77886576,206.66,206.65,0.03]
[1757291798507,43.11886576,206.66,206.65,0.03]
[1757291800224,43.77886576,206.66,206.65,0.03]
[1757291802320,47.57719462,206.66,206.65,0.03]
[1757291802823,61.17278863,206.66,206.65,0.03]
[1757291803717,57.37445977,206.66,206.65,0.03]
[1757291804910,43.11886576,206.66,206.65,0.03]
[1757291806021,38.28,206.66,206.65,0.74]
[1757291806321,38.28,206.66,206.65,3.17005589]
[1757291806824,0.06,206.66,206.65,3.17005589]
[1757291807022,38.2,206.66,206.65,3.17005589]
[1757291807220,38.2,206.66,206.65,8.00915581]
[1757291809226,38.2,206.66,206.65,5.57909992]
[1757291809430,38.2,206.66,206.65,8.00915581]
[1757291811027,38.2,206.66,206.65,3.17005589]
[1757291814333,46.12892165,206.66,206.65,0.03]
[1757291819453,43.69886576,206.66,206.65,0.03]
[1757291819644,45.46892165,206.66,206.65,0.03]
[1757291819934,43.03886576,206.66,206.65,0.03]
[1757291820425,43.69886576,206.66,206.65,0.03]
[1757291820733,38.2,206.66,206.65,3.17005589]
[1757291821124,43.03886576,206.66,206.65,0.03]
[1757291822529,46.12892165,206.66,206.65,0.03]
[1757291824016,43.03886576,206.66,206.65,0.03]
[1757291825427,38.2,206.66,206.65,0.03]
[1757291825640,0.06,206.66,206.65,0.71]
[1757291825944,38.2,206.66,206.65,3.14005589]
[1757291827247,38.2,206.66,206.65,7.97915581]
[1757291827839,0.06,206.66,206.65,50.64474982]
[1757291829843,0.06,206.66,206.65,37.04915581]
[1757291830042,0.06,206.66,206.65,32.21005589]
[1757291831640,0.06,206.66,206.65,0.03]
[1757291831927,0.75,206.66,206.65,0.03]
[1757291832325,0.06,206.66,206.65,0.03]
[1757291835556,0.06,206.66,206.65,3.14005589]
[1757291835925,0.06,206.66,206.65,2.46005589]
[1757291838043,0.06,206.66,206.65,29.14005589]
[1757291838427,0.06,206.66,206.65,28.46005589]
[1757291838630,0.06,206.66,206.65,29.14005589]
[1757291838927,0.06,206.66,206.65,33.97915581]
[1757291839228,0.06,206.66,206.65,63.04915581]
[1757291839831,0.06,206.66,206.65,77.57524224]
[1757291840439,0.06,206.68,206.65,91.17083625]
[1757291840640,0.06,206.68,206.67,31.50005589]
[1757291841053,0.06,206.68,206.67,32.18005589]
[1757291841850,0.06,206.68,206.67,37.01868752]
[1757291843243,0.06,206.68,206.67,117.11868752]
[1757291844341,0.06,206.68,206.67,130.71428153]
[1757291848353,0.06,206.68,206.67,145.23755507]
[1757291849365,0.06,206.69,206.68,42.66559401]
[1757291849537,0.06,206.75,206.73,26.0]
[1757291849741,0.06,206.75,206.74,16.50934923]
[1757291850049,0.06,206.78,206.76,39.59559401]
[1757291850244,0.06,206.78,206.77,2.43005589]
[1757291850447,0.06,206.78,206.77,3.11005589]
[1757291850656,0.06,206.78,206.77,16.7056499]
[1757291850852,0.06,206.78,206.77,23.47744091]
[1757291851459,0.06,206.78,206.77,52.54744091]
[1757291851663,0.06,206.79,206.78,25.74587346]
[1757291851857,0.06,206.79,206.78,26.42587346]
[1757291852566,0.06,206.8,206.79,12.15027945]
[1757291852749,0.06,206.8,206.79,17.66610323]
[1757291854267,0.06,206.8,206.79,7.26587967]
[1757291854756,0.06,206.8,206.79,7.94587967]
[1757291855738,0.06,206.8,206.79,17.66610323]
[1757291855966,0.06,206.8,206.79,99.64150906]
[1757291856752,0.06,206.8,206.79,1.93540583]
[1757291856953,0.78,206.8,206.76,94.33559401]
[1757291857154,0.78,206.8,206.79,2.43005589]
[1757291857762,0.06,206.8,206.79,3.13005589]
[1757291857961,0.06,206.8,206.79,29.13005589]
[1757291858347,0.78,206.8,206.79,2.43005589]
[1757291858959,0.78,206.8,206.78,2.43005589]
[1757291859166,0.72,206.79,206.78,2.43005589]
[1757291859365,0.72,206.79,206.74,1.93596786]
[1757291859553,2.49005589,206.8,206.74,1.93596786]
[1757291859554,38.8,206.78,206.74,2.43005589]
[1757291859759,0.72,206.77,206.74,2.43005589]
[1757291859965,0.72,206.76,206.74,2.43005589]
[1757291860351,0.72,206.76,206.75,2.43005589]
[1757291860848,38.08,206.78,206.75,2.43005589]
[1757291861055,38.8,206.78,206.77,2.43005589]
[1757291862476,38.8,206.78,206.76,2.43005589]
[1757291862656,0.72,206.77,206.73,30.83715913]
[1757291862856,38.08,206.78,206.76,2.43005589]
[1757291863064,0.72,206.77,206.76,2.43005589]
[1757291863470,0.72,206.77,206.73,2.43005589]
[1757291863675,2.43005589,206.75,206.7,2.43005589]
[1757291863852,0.72,206.74,206.7,2.43005589]
[1757291864049,0.72,206.73,206.7,2.43005589]
[1757291864254,38.08,206.72,206.7,2.43005589]
[1757291864483,38.8,206.72,206.7,2.43005589]
[1757291864671,38.8,206.72,206.66,46.06352921]
[1757291864977,38.8,206.72,206.7,2.43005589]
[1757291865178,0.72,206.71,206.69,2.43005589]
[1757291865380,0.72,206.7,206.69,2.43005589]
[1757291866164,38.08,206.72,206.69,2.43005589]
[1757291866365,38.8,206.72,206.7,3.79369169]
[1757291867081,0.72,206.71,206.7,3.79369169]
[1757291868596,38.08,206.72,206.7,3.79369169]
[1757291871376,0.72,206.67,206.65,3.82369169]
[1757291872285,38.08,206.68,206.65,3.82369169]
[1757291872587,38.08,206.68,206.66,3.79369169]
[1757291874490,38.08,206.68,206.67,3.79369169]
[1757291875499,43.63845293,206.68,206.65,0.03]
[1757291875786,3.79369169,206.67,206.65,0.03]
[1757291876191,4.51369169,206.66,206.65,0.03]
[1757291876569,9.35255745,206.66,206.65,0.03]
[1757291877487,5.55886576,206.66,206.65,0.03]
[1757291878702,0.72,206.66,206.65,0.03]
[1757291880289,9.35255745,206.66,206.65,0.03]
[1757291880590,13.24624914,206.66,206.65,0.03]
[1757291881288,3.89369169,206.66,206.65,0.03]
[1757291881488,0.72,206.7,206.65,4.52369169]
[1757291881676,38.08,206.69,206.67,3.79369169]
[1757291882282,42.91817197,206.69,206.67,3.79369169]
[1757291882879,42.91817197,206.69,206.66,3.79369169]
[1757291883080,42.91817197,206.69,206.65,0.03]
[1757291883081,3.79369169,206.67,206.65,0.03]
[1757291883294,0.72,206.68,206.65,0.03]
[1757291883295,41.87369169,206.66,206.65,0.03]
[1757291883481,42.59369169,206.66,206.65,0.03]